bitfinex/quotes_ETHUSD_20240730
["timestamp","ask_amount","ask_price","bid_price","bid_amount"]
[1722306982970,0.07846132,3300.1,3299.9,2.4243]
[1722306983168,3.0,3300.6,3299.9,2.48489952]
[1722306983424,5.42366,3300.8,3300.0,2.42422]
[1722306983610,3.0,3300.9,3300.1,2.42416]
[1722306983974,5.42359,3300.9,3300.1,2.42416]
[1722306984278,3.93835358,3300.9,3299.8,4.83133]
[1722306984474,0.93835358,3300.8,3300.2,35.0]
[1722306984678,2.42386,3300.6,3300.2,35.0]
[1722306985302,3.0,3300.7,3300.2,35.0]
[1722306985502,0.93835358,3300.6,3300.2,35.0]
[1722306985811,0.93835358,3300.7,3300.2,35.0]
[1722306986012,2.42385,3300.6,3300.2,35.0]
[1722306986313,2.42402,3300.3,3300.2,35.0]
[1722306986613,4.84804,3300.3,3300.2,35.0]
[1722306986817,3.36222358,3300.5,3300.2,35.0]
[1722306986977,5.42395,3300.4,3300.2,35.0]
[1722306987182,2.42402,3300.3,3300.2,35.0]
[1722306987729,3.0,3300.4,3300.2,35.0]
[1722306988186,3.36194358,3300.9,3300.2,35.0]
[1722306988388,2.42359,3300.9,3300.2,35.0]
[1722306988692,7.37,3301.1,3300.6,2.4238]
[1722306988887,7.37,3301.1,3300.8,2.2768]
[1722306989188,7.37,3301.1,3300.9,35.0]
[1722306989387,7.37,3301.6,3300.9,37.42357]
[1722306989574,7.37,3301.6,3301.0,0.06058173]
[1722306990002,7.37,3301.6,3301.0,2.48408173]
[1722306990236,7.37,3301.6,3301.1,37.42343]
[1722306990436,7.37,3301.6,3301.2,0.06057724]
[1722306991111,7.37,3301.6,3301.3,35.0]
[1722306991315,2.42321,3301.4,3301.3,35.0]
[1722306991711,2.42314,3301.5,3301.3,35.0]
[1722306992036,9.79307,3301.6,3301.3,35.0]
[1722306992895,2.42321,3301.4,3301.3,35.0]
[1722306994096,2.50316102,3301.4,3301.3,35.0]
[1722306996233,2.50316102,3301.4,3300.8,2.2768]
[1722306996460,0.07995102,3301.4,3300.8,2.2768]
[1722306996739,0.07995102,3301.4,3300.9,35.0]
[1722306997112,0.07995102,3301.4,3300.9,37.01860554]
[1722306997752,0.07995102,3301.4,3301.1,2.42342]
[1722306997930,7.37,3302.0,3301.3,2.2726]
[1722306998130,0.07996342,3301.9,3301.6,2.423]
[1722306998332,7.37,3302.3,3301.8,2.2726]
[1722306998559,7.37,3302.3,3301.9,3.10957578]
[1722306998860,7.37,3302.3,3301.9,3.04901288]
[1722306999173,7.37,3302.3,3302.0,0.06056134]
[1722306999329,12.41,3302.8,3302.0,0.06056134]
[1722306999330,2.4222,3302.8,3302.0,0.06056134]
[1722306999530,2.42248,3302.4,3301.9,3.04901288]
[1722306999761,2.42263,3302.2,3302.0,0.53216129]
[1722307000068,2.42248,3302.4,3301.8,2.2726]
[1722307000543,2.42261,3302.3,3301.8,2.2726]
[1722307000861,2.42264,3302.2,3301.8,2.2726]
[1722307001231,2.42276,3302.1,3301.8,2.2726]
[1722307001432,2.42277,3302.0,3301.8,2.2726]
[1722307002238,2.42263,3302.2,3301.8,2.2726]
[1722307002664,2.42276,3302.1,3301.8,2.2726]
[1722307002834,2.42279,3302.0,3301.8,2.79699144]
[1722307003034,4.84584,3301.8,3301.7,35.0]
[1722307003234,2.42292,3301.8,3301.7,35.0]
[1722307004379,2.42277,3302.0,3301.7,35.0]
[1722307004818,2.4227,3302.1,3301.7,35.0]
[1722307005144,2.42291,3301.9,3301.7,35.0]
[1722307005652,2.42278,3302.0,3301.7,35.0]
[1722307006174,2.42278,3302.0,3301.4,2.4]
[1722307006512,2.42302,3301.7,3301.4,2.4]
[1722307006791,2.42302,3301.7,3301.5,35.0]
[1722307006974,2.4229,3301.9,3301.5,35.0]
[1722307007377,2.50053766,3301.8,3301.5,35.0]
[1722307007781,2.42299,3301.7,3301.5,35.0]
[1722307007964,2.42306,3301.6,3301.5,35.0]
[1722307008175,4.84612,3301.6,3301.5,35.0]
[1722307008544,2.42343,3301.1,3300.9,2.4587]
[1722307008908,0.07760939,3301.0,3300.9,2.4587]
[1722307009451,0.07760939,3301.0,3300.5,2.3191]
[1722307009653,2.42359,3300.9,3300.5,2.3191]
[1722307009972,2.42359,3300.9,3299.8,3.397]
[1722307009973,0.07747269,3300.8,3299.8,2.3191]
[1722307010314,2.42369,3300.8,3299.9,0.23191]
[1722307010446,0.07747269,3300.7,3299.9,0.23191]
[1722307010818,3.07747269,3300.7,3299.8,2.3191]
[1722307010955,2.42419,3300.1,3299.8,2.3191]
[1722307011262,0.07747269,3300.7,3299.8,2.3191]
[1722307011263,2.42388,3300.5,3299.8,2.3191]
[1722307011468,10.37,3300.6,3299.8,2.3191]
[1722307011852,2.42395,3300.4,3299.8,2.3191]
[1722307012049,2.50111479,3300.5,3299.8,2.3191]
[1722307012267,2.4241,3300.2,3299.8,2.3191]
[1722307012849,2.42395,3300.4,3299.8,2.3191]
[1722307013050,0.07724479,3300.1,3299.8,4.74347]
[1722307013271,12.79381,3300.6,3299.8,5.217817]
[1722307013509,0.07724479,3300.0,3299.8,5.217817]
[1722307013687,10.37,3300.6,3299.9,2.4243]
[1722307013890,7.37,3300.6,3299.9,2.4243]
[1722307014201,7.37,3300.6,3300.0,0.0605992]
[1722307014418,7.37,3300.6,3300.3,2.42396]
[1722307014551,7.37,3300.6,3300.4,2.48453122]
[1722307015011,9.79329,3301.3,3300.4,2.48453122]
[1722307015385,9.79329,3301.3,3300.5,2.42386]
[1722307015716,9.79329,3301.3,3300.6,0.06058554]
[1722307015869,9.79329,3301.3,3300.1,2.4901]
[1722307015870,7.37,3301.3,3300.1,2.4901]
[1722307016200,2.42357,3301.0,3300.2,0.491433]
[1722307016398,2.42354,3301.0,3300.3,0.06059381]
[1722307016692,2.42351,3301.0,3300.3,2.42395]
[1722307016910,2.42363,3300.9,3300.1,4.91423]
[1722307017120,2.42344,3301.1,3300.1,4.91423]
[1722307017121,2.42344,3301.1,3300.1,4.91421]
[1722307017279,2.42344,3301.1,3300.2,0.491421]
[1722307017625,2.4234,3301.2,3300.2,0.491421]
[1722307017752,7.37,3301.3,3300.2,0.491421]
[1722307017957,2.4234,3301.2,3300.5,2.42387]
[1722307018259,2.4235,3301.1,3300.2,0.491421]
[1722307018465,7.37,3301.3,3300.1,2.4901]
[1722307018466,2.4235,3301.0,3300.1,2.4901]
[1722307019172,2.42362,3300.9,3300.1,2.4901]
[1722307020109,2.42347,3301.1,3300.2,2.42409]
[1722307020462,2.42351,3301.0,3300.2,2.42409]
[1722307020777,7.37,3301.3,3300.1,2.4901]
[1722307021010,2.42374,3300.7,3300.1,2.4901]
[1722307021214,2.42357,3301.0,3300.1,5.405693]
[1722307021509,2.42357,3301.0,3300.1,2.4901]
[1722307021730,8.31381269,3301.3,3300.1,2.4901]
[1722307021862,7.37,3301.3,3300.5,2.4771]
[1722307022061,7.37,3301.3,3300.7,2.42372]
[1722307022270,7.37,3301.3,3300.5,4.90096]
[1722307022271,9.79329,3301.3,3300.5,2.4771]
[1722307022487,9.79329,3301.3,3300.5,4.9009]
[1722307022730,7.37,3301.3,3300.6,0.06058635]
[1722307022869,7.37,3301.3,3300.6,2.42375]
[1722307023220,7.37,3301.3,3300.8,2.42363]
[1722307023370,7.37,3301.3,3300.9,0.06058221]
[1722307023578,0.94381269,3301.5,3301.0,2.42345]
[1722307023815,19.78,3301.7,3301.1,0.06057734]
[1722307023816,23.14680269,3301.7,3301.1,0.06057734]
[1722307024015,0.07718262,3301.4,3301.1,0.06057734]
[1722307024328,3.68126692,3301.9,3301.2,2.3987]
[1722307024329,0.07718262,3301.3,3301.2,2.3987]
[1722307024535,2.42293,3301.8,3301.2,2.3987]
[1722307024727,0.07718262,3301.7,3301.3,0.06057585]
[1722307024915,3.36674269,3301.8,3301.3,0.06057585]
[1722307025137,0.07724478,3301.7,3301.3,0.06057585]
[1722307025470,2.42293,3301.8,3301.3,0.06057585]
[1722307025765,3.36674269,3301.8,3301.3,0.06057585]
[1722307025974,2.50024478,3301.7,3301.3,0.06057585]
[1722307026181,0.94381269,3301.6,3300.8,2.2725]
[1722307026452,0.07724478,3301.7,3300.8,2.2725]
[1722307026453,2.42331,3301.3,3300.8,2.2725]
[1722307026647,0.94381269,3301.2,3300.4,2.42392]
[1722307026953,0.94381269,3301.2,3300.5,2.42386]
[1722307026954,0.07732348,3301.1,3300.5,2.42386]
[1722307027615,0.07732348,3301.1,3300.4,0.712039]
[1722307027616,2.42358,3300.9,3300.4,0.712039]
[1722307027945,0.07732348,3301.1,3300.5,2.42386]
[1722307027946,0.07720335,3300.8,3300.5,2.42386]
[1722307028150,3.36717269,3301.2,3300.5,2.42386]
[1722307028461,2.50063335,3301.1,3300.3,4.69652]
[1722307028746,0.94381269,3301.0,3300.3,4.69652]
[1722307028948,3.36724269,3301.1,3300.3,5.408587]
[1722307029145,0.07720335,3301.0,3300.3,5.408587]
[1722307029746,0.07720335,3301.0,3300.4,2.42394]
[1722307030048,3.36739269,3300.9,3300.3,2.984567]
[1722307030248,2.42375,3300.7,3300.0,2.42422]
[1722307030570,0.07720335,3300.6,3300.0,2.42422]
[1722307031064,0.07720335,3300.6,3299.5,3.0]
[1722307031065,0.07720335,3300.6,3300.2,2.3485]
[1722307031215,0.07720335,3300.6,3300.5,4.84774]
[1722307031422,0.94381269,3301.2,3300.7,2.3485]
[1722307031657,0.94381269,3301.2,3300.9,2.42357]
[1722307031949,0.07712462,3301.1,3301.0,2.48408012]
[1722307032152,1.25841692,3301.5,3301.0,2.48408012]
[1722307032153,0.94381269,3301.5,3301.0,2.48408012]
[1722307032452,0.07706245,3301.4,3301.0,0.06058012]
[1722307032687,0.94381269,3301.3,3301.0,0.06058012]
[1722307032836,1.02087514,3301.4,3301.0,0.06058012]
[1722307033034,0.07732767,3301.2,3301.1,2.42343]
[1722307033256,0.94381269,3301.5,3301.0,0.06058012]
[1722307033479,0.07732767,3301.2,3301.0,0.06058012]
[1722307033808,0.07732767,3301.2,3300.7,5.49786925]
[1722307033809,0.07732767,3301.1,3300.7,5.49786925]
[1722307034187,0.94381269,3301.2,3300.7,5.49786925]
[1722307034514,0.07752656,3301.1,3300.8,2.42364]
[1722307034850,0.07752656,3301.1,3300.9,0.06058211]
[1722307035373,0.07752656,3301.1,3300.8,2.42364]
[1722307035374,0.07754313,3301.0,3300.8,2.42364]
[1722307035559,0.94381269,3301.2,3300.8,3.21579993]
[1722307035900,0.07751413,3301.1,3300.8,3.21579993]
[1722307036269,0.07751413,3301.1,3301.0,2.4235]
[1722307036477,0.07751413,3301.1,3301.0,4.847]
[1722307036800,1.25841692,3301.6,3301.2,2.276]
[1722307036801,0.94381269,3301.6,3301.2,2.276]
[1722307037003,0.94381269,3302.0,3301.7,2.42294]
[1722307037204,0.94381269,3301.9,3301.8,2.48348712]
[1722307037357,0.9488907,3301.9,3301.4,2.276]
[1722307037556,0.63245052,3302.0,3301.8,2.42292]
[1722307037756,0.63245052,3302.0,3301.9,0.06056399]
[1722307037957,0.9488907,3302.2,3301.9,2.33656399]
[1722307037958,0.63245052,3302.1,3301.9,2.33656399]
[1722307038193,0.63245052,3302.2,3302.1,4.8454]
[1722307038367,0.63245052,3302.3,3302.2,2.42262]
[1722307038571,0.63245052,3302.3,3302.0,0.2336564]
[1722307038572,0.9488907,3302.3,3302.0,2.42273]
[1722307038800,0.63227808,3302.2,3302.1,2.4227]
[1722307038998,0.70753703,3302.2,3302.1,4.90595896]
[1722307039325,0.70753703,3302.2,3302.1,5.62415486]
[1722307039326,0.07525895,3302.2,3302.1,5.62415486]
[1722307039529,0.63227808,3302.6,3302.5,2.4224]
[1722307039723,0.63227808,3302.7,3302.6,2.42233]
[1722307040029,0.63227808,3302.7,3302.6,4.79353]
[1722307040440,0.63227808,3302.8,3302.7,2.42226]
[1722307040585,0.63227808,3302.8,3302.7,5.57216093]
[1722307040789,1.25841692,3303.2,3303.1,2.42196]
[1722307040790,0.63227808,3303.2,3303.1,2.42196]
[1722307040984,0.63227808,3303.3,3303.2,4.84378]
[1722307041208,0.63227808,3303.7,3303.3,2.42182]
[1722307041524,0.63227808,3303.7,3303.4,0.06053497]
[1722307041823,0.63227808,3303.6,3303.4,2.48227497]
[1722307042003,7.37,3304.1,3303.4,2.48227497]
[1722307042198,0.63205475,3303.7,3303.4,2.48227497]
[1722307042548,0.63205475,3303.7,3303.5,0.06053449]
[1722307043088,0.63205475,3303.6,3303.2,2.42186]
[1722307043313,0.63205475,3303.6,3302.7,0.72764093]
[1722307043622,0.63205475,3303.6,3303.1,2.42192]
[1722307043994,0.63205475,3303.6,3302.9,2.42209]
[1722307044329,3.6855395,3303.9,3302.8,0.30988409]
[1722307044330,0.63205475,3303.5,3303.0,2.42197]
[1722307044532,0.63205475,3303.6,3303.0,2.42197]
[1722307045030,0.63205475,3303.5,3303.1,2.42194]
[1722307046314,0.63205475,3303.5,3303.2,2.42188]
[1722307046520,0.63205475,3303.6,3303.2,2.42188]
[1722307047249,0.63205475,3303.6,3303.0,2.42203]
[1722307047250,0.63205475,3303.7,3303.0,2.42203]
[1722307047420,0.63205475,3303.3,3302.6,2.3712]
[1722307047619,0.63205475,3303.1,3302.6,2.3712]
[1722307047852,0.63205475,3303.0,3302.6,2.3712]
[1722307048153,0.63205475,3303.0,3302.5,2.42237]
[1722307048358,0.63205475,3302.8,3302.3,2.42254]
[1722307048651,0.63183266,3303.1,3302.7,2.42226]
[1722307049020,0.63183266,3303.1,3302.3,2.98448359]
[1722307049225,0.63183266,3302.8,3302.3,2.42251]
[1722307049967,0.63183266,3302.9,3302.4,2.42247]
[1722307050142,0.63183266,3302.8,3302.1,2.479]
[1722307050329,0.63183266,3302.9,3302.3,2.42255]
[1722307050532,0.63183266,3302.9,3302.1,4.90169]
[1722307050844,0.63183266,3302.8,3302.1,4.90169]
[1722307051040,3.05402266,3302.8,3302.1,4.90169]
[1722307051430,2.42226,3302.7,3301.6,4.81279]
[1722307051634,2.42267,3302.2,3301.4,2.42321]
[1722307051974,2.42248,3302.4,3301.2,4.81314]
[1722307051975,2.42279,3302.0,3301.2,4.81314]
[1722307052157,0.63183266,3302.0,3301.3,2.42327]
[1722307052353,0.63183266,3302.0,3301.2,2.871114]
[1722307052656,0.63183266,3301.8,3301.2,4.81313]
[1722307052817,0.63183266,3301.9,3301.3,2.42328]
[1722307053018,0.63183266,3301.9,3301.5,2.42307]
[1722307053322,0.63183266,3302.0,3301.5,2.42307]
[1722307053519,0.63183266,3301.8,3300.8,2.3185]
[1722307053719,0.63183266,3301.7,3301.0,2.4235]
[1722307053932,0.07616753,3301.6,3301.1,2.42342]
[1722307054134,3.05479266,3301.8,3301.1,2.42342]
[1722307054367,0.07616753,3301.7,3301.1,2.42337]
[1722307054568,0.07616753,3301.7,3300.9,2.42358]
[1722307054871,0.63183266,3301.4,3300.8,2.42364]
[1722307055165,0.70770156,3301.3,3300.8,2.42364]
[1722307055533,0.63183266,3301.2,3300.3,2.42401]
[1722307055732,0.63183266,3301.0,3300.3,3.140676]
[1722307055950,0.70760614,3300.9,3300.3,3.140676]
[1722307056167,0.07577348,3300.9,3300.4,2.42394]
[1722307056363,0.07577348,3300.9,3300.5,2.42387]
[1722307056742,0.07577348,3300.9,3300.3,3.140646]
[1722307056941,0.63183266,3300.7,3300.0,2.42418]
[1722307057153,0.70750244,3300.6,3299.9,2.4243]
[1722307057580,0.63183266,3300.5,3299.9,2.4243]
[1722307057965,0.07566978,3300.4,3300.0,2.42421]
[1722307058467,0.07566978,3300.4,3300.1,2.42416]
[1722307058699,0.07566978,3300.4,3300.2,0.06059487]
[1722307058849,0.07566978,3300.4,3300.3,2.42402]
[1722307059041,0.63183266,3300.7,3300.3,2.48461]
[1722307059263,0.07512205,3300.4,3300.3,2.48461]
[1722307059574,0.63183266,3300.8,3300.4,2.2614]
[1722307059761,0.63183266,3300.8,3300.5,0.06058781]
[1722307061245,0.63183266,3300.9,3300.6,2.42378]
[1722307061476,0.63183266,3301.0,3300.7,0.06058523]
[1722307061681,0.63183266,3300.9,3300.7,0.06058523]
[1722307062551,0.63183266,3300.8,3300.5,0.06058558]
[1722307062777,0.63183266,3300.7,3300.4,2.42394]
[1722307062990,0.94774899,3300.9,3300.1,2.666566]
[1722307062991,0.63183266,3300.9,3300.5,2.4843967]
[1722307063153,0.63183266,3300.8,3300.5,2.4843967]
[1722307063556,0.63183266,3300.7,3300.5,2.4843967]
[1722307063769,0.94774899,3300.9,3300.5,0.0605867]
[1722307063770,0.63183266,3300.8,3300.5,0.0605867]
[1722307064278,0.94774899,3300.9,3300.7,35.0]
[1722307064460,0.6327728,3300.8,3300.7,35.0]
[1722307064642,0.94774899,3300.9,3300.7,35.0]
[1722307064847,0.94774899,3300.8,3300.7,35.0]
[1722307065117,3.68725533,3300.9,3300.7,35.0]
[1722307065643,1.26366533,3300.8,3300.7,35.0]
[1722307065949,0.94917222,3300.8,3300.7,35.0]
[1722307066173,1.26366533,3300.8,3300.7,35.0]
[1722307066368,1.26366533,3300.9,3300.7,35.0]
[1722307066568,0.94914289,3300.8,3300.7,35.0]
[1722307066780,0.94914289,3300.9,3300.7,35.0]
[1722307066985,0.94914289,3300.8,3300.7,35.0]
[1722307067370,0.94918196,3300.8,3300.7,35.0]
[1722307067769,0.94918196,3300.8,3300.7,37.42372]
[1722307067969,0.63277994,3300.8,3300.7,37.42372]
[1722307068286,0.63277994,3300.9,3300.8,2.42365]
[1722307068487,0.63277994,3301.2,3301.1,2.42343]
[1722307068653,0.63277994,3301.4,3301.2,2.42336]
[1722307068860,7.37,3301.5,3301.4,2.42321]
[1722307069067,0.63277994,3301.6,3301.4,2.42321]
[1722307069265,0.63277994,3301.7,3301.4,0.06057286]
[1722307069567,0.63277994,3301.7,3301.6,2.42306]
[1722307069771,1.26557595,3302.0,3301.5,2.42314]
[1722307069772,0.63277994,3301.9,3301.5,2.42314]
[1722307069991,0.63277994,3301.9,3301.8,35.0]
[1722307070194,0.94918196,3301.9,3301.8,35.0]
[1722307070395,0.63272547,3302.0,3301.8,35.0]
[1722307070720,0.63272547,3302.0,3301.8,2.42289]
[1722307070997,0.63272547,3302.1,3301.9,35.0]
[1722307071407,0.63272547,3302.3,3302.1,2.4227]
[1722307071603,0.63272547,3302.4,3302.2,0.06055852]
[1722307071807,0.63272547,3302.4,3301.6,2.3028]
[1722307071808,0.63272547,3302.5,3301.6,4.72584]
[1722307071973,0.63272547,3302.4,3302.3,35.0]
[1722307072503,0.63272547,3302.5,3302.3,35.0]
[1722307072706,0.63272547,3302.5,3302.1,2.42268]
[1722307072893,0.9490882,3302.6,3302.1,2.42268]
[1722307072894,0.63272547,3302.4,3302.1,2.42268]
[1722307073206,0.63272547,3302.4,3302.3,35.0]
[1722307073404,2.42239,3302.6,3302.3,35.0]
[1722307073586,0.94869734,3302.5,3302.3,35.0]
[1722307074507,0.63239045,3302.4,3302.3,35.0]
[1722307074701,2.42248,3302.4,3302.3,35.0]
[1722307075370,0.94869734,3302.5,3302.3,35.0]
[1722307075574,0.63185796,3302.4,3302.3,35.0]
[1722307075916,0.63178032,3302.5,3302.3,35.0]
[1722307077610,0.63178032,3302.6,3302.4,0.06055752]
[1722307077907,0.63178032,3302.8,3302.4,2.36335752]
[1722307078075,0.63178032,3302.9,3302.6,35.0]
[1722307078404,0.63178032,3303.1,3302.8,2.42213]
[1722307078606,0.63178032,3303.3,3302.9,2.48264551]
[1722307078806,0.7072675,3303.2,3302.9,0.06054551]
[1722307079273,0.07548718,3303.2,3302.9,0.06054551]
[1722307079613,2.4216,3303.6,3302.8,2.42216]
[1722307079822,0.63157039,3303.4,3302.9,0.06054277]
[1722307080136,0.63157039,3303.6,3303.2,2.42188]
[1722307080307,0.07633343,3303.3,3302.7,2.42225]
[1722307080482,0.94735559,3303.5,3303.3,35.0]
[1722307080684,2.42165,3303.6,3303.3,35.0]
[1722307080685,0.63133309,3303.4,3303.3,35.0]
[1722307081391,0.631261,3303.4,3303.3,35.0]
[1722307082178,3.053001,3303.4,3303.3,35.0]
[1722307082378,2.42174,3303.4,3303.3,35.0]
[1722307082679,3.36909559,3303.4,3303.3,35.0]
[1722307082911,5.47424338,3303.4,3303.3,35.0]
[1722307083122,4.84348,3303.4,3303.3,35.0]
[1722307083370,6.10662079,3303.4,3303.3,35.0]
[1722307083675,4.84348,3303.4,3303.3,35.0]
[1722307083932,3.3675265,3303.4,3303.3,35.0]
[1722307084109,3.4438848,3303.4,3303.3,35.0]
[1722307085025,1.0221448,3303.4,3303.3,35.0]
[1722307085258,1.0221448,3303.4,3303.3,42.75923288]
[1722307085259,0.0763583,3303.4,3303.3,42.75923288]
[1722307085536,0.0763583,3303.4,3303.3,45.18105288]
[1722307085678,7.37,3304.1,3303.3,45.18105288]
[1722307085679,7.37,3304.1,3303.7,2.42151]
[1722307085883,3.05148761,3304.4,3303.8,0.06052968]
[1722307086140,0.07120863,3304.0,3303.8,0.06052968]
[1722307086435,0.63045761,3304.4,3303.9,2.42136]
[1722307086592,0.63045761,3304.4,3303.9,35.0]
[1722307086920,3.05147761,3304.4,3303.9,35.0]
[1722307087137,8.00045761,3304.5,3303.9,35.0]
[1722307087279,7.37,3304.5,3303.9,35.0]
[1722307087478,2.4211,3304.3,3303.9,35.0]
[1722307088187,2.42106,3304.4,3303.9,35.0]
[1722307088814,2.42111,3304.3,3303.9,35.0]
[1722307090141,2.42106,3304.4,3303.9,35.0]
[1722307090489,2.42109,3304.3,3303.9,35.0]
[1722307090689,9.79094,3304.5,3303.9,35.0]
[1722307090888,2.42094,3304.5,3304.0,0.06052586]
[1722307091198,2.4208,3304.7,3303.9,35.0]
[1722307091404,2.4208,3304.7,3304.0,2.48879151]
[1722307091605,9.79073,3304.8,3304.1,0.06052196]
[1722307091845,7.37,3304.8,3304.2,2.4211]
[1722307092134,7.37,3304.8,3304.5,35.0]
[1722307092835,2.42086,3304.6,3304.5,35.0]
[1722307093021,2.49322509,3304.6,3304.5,35.0]
[1722307093223,0.07236509,3304.6,3304.5,35.0]
[1722307093542,9.79072,3304.8,3304.5,35.0]
[1722307093688,0.07236509,3304.6,3304.5,35.0]
[1722307094233,7.37,3304.8,3304.5,35.0]
[1722307094429,0.07236509,3304.7,3304.5,35.0]
[1722307094727,7.37,3304.8,3304.5,35.0]
[1722307094932,0.07245208,3304.6,3304.5,35.0]
[1722307095444,7.37,3305.3,3304.5,35.0]
[1722307095728,2.42084,3304.7,3304.5,35.0]
[1722307096043,0.07243965,3304.6,3304.5,35.0]
[1722307096392,2.42068,3304.9,3304.5,35.0]
[1722307096604,2.49315965,3304.8,3304.5,35.0]
[1722307097202,0.07243965,3304.8,3304.5,35.0]
[1722307097406,2.42086,3304.6,3304.5,35.0]
[1722307097964,4.84172,3304.6,3304.5,35.0]
[1722307098168,2.49329965,3304.6,3304.5,35.0]
[1722307098650,2.42086,3304.6,3304.5,35.0]
[1722307099274,2.49329965,3304.6,3304.5,35.0]
[1722307100352,0.07243965,3304.6,3304.5,35.0]
[1722307100565,2.42076,3304.8,3304.5,35.0]
[1722307100980,0.07243965,3304.7,3304.5,35.0]
[1722307101127,2.42057,3305.0,3304.5,35.0]
[1722307101328,10.965,3305.3,3304.6,0.06051689]
[1722307101329,0.07243965,3304.9,3304.6,0.06051689]
[1722307101532,2.42043,3305.2,3304.6,3.10952977]
[1722307101877,0.07243965,3305.1,3304.6,3.10952977]
[1722307102260,2.42043,3305.2,3304.6,3.10952977]
[1722307102549,0.07243965,3305.1,3304.6,5.53037977]
[1722307102735,7.37,3305.3,3304.6,5.53037977]
[1722307102924,0.07243965,3305.2,3304.7,3.04901288]
[1722307103121,0.07243965,3305.2,3304.8,2.48123063]
[1722307103321,5.42001,3305.8,3304.5,4.70903]
[1722307103322,2.42028,3305.4,3304.5,4.70903]
[1722307103539,0.07243965,3305.3,3304.6,2.42084]
[1722307103759,0.07243965,3305.3,3304.9,35.0]
[1722307103921,0.07243965,3305.3,3304.9,38.04901288]
[1722307104125,2.42021,3305.5,3304.9,38.04901288]
[1722307104325,0.07277522,3305.4,3304.9,38.04901288]
[1722307104722,2.4204,3305.3,3304.9,38.04901288]
[1722307105131,0.07277522,3305.2,3304.9,38.04901288]
[1722307105366,2.42021,3305.5,3304.9,38.04901288]
[1722307105669,0.07277522,3305.4,3304.9,38.04901288]
[1722307106028,0.07277522,3305.4,3305.0,3.04901288]
[1722307106368,0.07277522,3305.3,3305.0,5.53008891]
[1722307106698,9.79006,3305.7,3305.0,2.48107603]
[1722307106840,0.07277522,3305.2,3305.1,35.0]
[1722307107038,2.42015,3305.6,3305.1,35.0]
[1722307107242,0.07277522,3305.5,3305.2,1.15379172]
[1722307107497,7.37,3305.7,3305.3,0.06050401]
[1722307107667,0.07277522,3305.4,3305.3,0.06050401]
[1722307107831,7.37,3305.7,3305.3,35.0]
[1722307108160,0.07277522,3305.6,3305.3,35.0]
[1722307108339,0.07277522,3305.6,3305.3,38.04901288]
[1722307109765,2.49290522,3305.6,3305.3,38.04901288]
[1722307110084,2.49290522,3305.6,3305.3,35.0]
[1722307110303,2.49291522,3305.6,3305.3,35.0]
[1722307110726,2.42021,3305.5,3305.3,35.0]
[1722307111132,2.42028,3305.4,3305.3,35.0]
[1722307111448,2.49305522,3305.4,3305.3,35.0]
[1722307111936,0.07277522,3305.4,3305.3,35.0]
[1722307112131,2.42014,3305.6,3305.3,38.04901288]
[1722307112553,0.07288289,3305.5,3305.3,35.0]
[1722307113971,2.42028,3305.4,3305.3,35.0]
[1722307114178,2.42014,3305.6,3305.3,35.0]
[1722307114353,0.07288289,3305.5,3305.3,35.0]
[1722307114687,2.49309289,3305.5,3305.3,35.0]
[1722307114994,2.42028,3305.4,3305.3,35.0]
[1722307115486,0.07288289,3305.4,3305.3,35.0]
[1722307115851,2.42021,3305.5,3305.3,35.0]
[1722307116050,0.07288289,3305.4,3305.3,35.0]
[1722307116454,2.49316289,3305.4,3305.3,35.0]
[1722307117816,0.07288289,3305.4,3305.3,35.0]
[1722307117958,2.42021,3305.5,3305.3,35.0]
[1722307118272,0.07288289,3305.4,3305.3,38.04901288]
[1722307118593,2.41999,3305.8,3305.3,38.04901288]
[1722307118792,0.07287045,3305.7,3305.3,38.04901288]
[1722307118993,7.37,3306.0,3305.4,2.48070932]
[1722307119160,0.07287045,3305.9,3305.5,3.04901288]
[1722307119494,2.41978,3306.1,3305.5,3.04901288]
[1722307119805,2.41991,3305.9,3305.5,3.04901288]
[1722307120008,0.07287045,3305.8,3305.6,0.30490129]
[1722307120303,2.41977,3306.1,3305.6,0.30490129]
[1722307120490,0.07287045,3305.7,3305.6,0.30490129]
[1722307120688,2.41977,3306.1,3305.6,0.36539622]
[1722307121294,0.07287045,3306.0,3305.6,0.06049493]
[1722307121458,0.07287045,3306.0,3305.7,35.0]
[1722307121651,2.41996,3305.9,3305.7,35.0]
[1722307122189,0.07287045,3305.8,3305.7,35.0]
[1722307122356,2.49285045,3305.8,3305.7,35.0]
[1722307122556,4.91283045,3305.8,3305.7,35.0]
[1722307122756,5.54428262,3305.8,3305.7,35.0]
[1722307122977,0.07287045,3305.8,3305.7,35.0]
[1722307123688,0.63146551,3305.9,3305.7,35.0]
[1722307123887,0.70477081,3305.8,3305.7,35.0]
[1722307124105,0.0733053,3305.8,3305.7,35.0]
[1722307124268,0.70477081,3305.8,3305.7,35.69262584]
[1722307124470,0.0733053,3305.8,3305.7,35.69262584]
[1722307124795,8.00146551,3306.3,3305.7,38.11262584]
[1722307124992,0.07331358,3305.8,3305.7,3.11262584]
[1722307125194,7.37,3306.3,3306.1,2.41976]
[1722307125414,0.63146551,3306.6,3306.2,37.2916]
[1722307125783,3.36397223,3306.7,3306.2,35.0]
[1722307125784,0.63146551,3306.5,3306.2,35.0]
[1722307125981,0.63161402,3306.3,3306.2,35.0]
[1722307126919,0.63161402,3306.4,3306.2,35.0]
[1722307127483,0.63161402,3306.3,3306.2,35.0]
[1722307127715,3.05116402,3306.4,3306.2,35.0]
[1722307128016,2.41962,3306.3,3306.2,35.0]
[1722307128217,3.36704103,3306.3,3306.2,35.0]
[1722307128402,0.94742103,3306.3,3306.2,35.0]
[1722307128803,2.41962,3306.3,3306.2,35.0]
[1722307129003,2.49335584,3306.3,3306.2,35.0]